[Event "January 9 Early 2024"]
[Site "https://www.chess.com"]
[Date "2024.01.11"]
[Round "11"]
[White "Von Buelow, Georg"]
[Black "Petrukhina, Olga"]
[Result "1-0"]
[Board "104"]
[TimeControl "180+1"]
[WhiteFideId "4620658"]
[BlackFideId "13703935"]
[WhiteElo "2149"]
[BlackElo "2267"]
[WhiteTeam "GER"]
[BlackTeam "KAZ"]
[WhiteClock "0:00:17"]
[BlackClock "0:00:02"]

1. e4 {[%clk 0:02:55]}  e6 {[%clk 0:02:59]} 2. d4 {[%clk 0:02:54]}  d5 {[%clk 0:02:57]} 3. Nc3 {[%clk 0:02:55]}  dxe4 {[%clk 0:02:56]} 4. Nxe4 {[%clk 0:02:55]}  Nd7 {[%clk 0:02:56]} 5. Nf3 {[%clk 0:02:54]}  Ngf6 {[%clk 0:02:55]} 6. Nxf6+ {[%clk 0:02:54]}  Nxf6 {[%clk 0:02:54]} 7. Bd3 {[%clk 0:02:54]}  Bd6 {[%clk 0:02:54]} 8. Bg5 {[%clk 0:02:53]}  h6 {[%clk 0:02:53]} 9. Bxf6 {[%clk 0:02:51]}  Qxf6 {[%clk 0:02:52]} 10. Qe2 {[%clk 0:02:52]}  Bd7 {[%clk 0:02:50]} 11. Be4 {[%clk 0:02:48]}  Rb8 {[%clk 0:02:36]} 12. O-O-O {[%clk 0:02:41]}  Bc6 {[%clk 0:02:27]} 13. Kb1 {[%clk 0:02:27]}  O-O {[%clk 0:02:17]} 14. Rhe1 {[%clk 0:02:22]}  a5 {[%clk 0:02:06]} 15. g3 {[%clk 0:02:20]}  a4 {[%clk 0:02:04]} 16. a3 {[%clk 0:02:18]}  Bxe4 {[%clk 0:01:52]} 17. Qxe4 {[%clk 0:02:16]}  b5 {[%clk 0:01:50]} 18. c3 {[%clk 0:02:16]}  Rfd8 {[%clk 0:01:23]} 19. Re2 {[%clk 0:01:56]}  c5 {[%clk 0:01:15]} 20. dxc5 {[%clk 0:01:29]}  Bxc5 {[%clk 0:01:15]} 21. Rxd8+ {[%clk 0:01:26]}  Rxd8 {[%clk 0:01:12]} 22. Kc2 {[%clk 0:01:24]}  Rd5 {[%clk 0:00:50]} 23. h4 {[%clk 0:01:22]}  Qd8 {[%clk 0:00:46]} 24. Ne5 {[%clk 0:01:10]}  Bd6 {[%clk 0:00:19]} 25. Nd3 {[%clk 0:01:07]}  Be7 {[%clk 0:00:16]} 26. Qe3 {[%clk 0:00:52]}  Bf6 {[%clk 0:00:11]} 27. Nb4 {[%clk 0:00:46]}  Rd6 {[%clk 0:00:08]} 28. Rd2 {[%clk 0:00:44]}  Rxd2+ {[%clk 0:00:07]} 29. Qxd2 {[%clk 0:00:44]}  Qb6 {[%clk 0:00:06]} 30. Nd3 {[%clk 0:00:32]}  Qc6 {[%clk 0:00:04]} 31. Qe2 {[%clk 0:00:28]}  Qc4 {[%clk 0:00:03]} 32. Nc1 {[%clk 0:00:26]}  Qd5 {[%clk 0:00:03]} 33. Qd2 {[%clk 0:00:19]}  Qh1 {[%clk 0:00:02]} 34. Qe2 {[%clk 0:00:17]} 1-0

[Event "January 9 Early 2024"]
[Site "https://www.chess.com"]
[Date "2024.01.11"]
[Round "11"]
[White "Kanyamarala, Tarun"]
[Black "Hoffmann, Asa"]
[Result "1-0"]
[Board "105"]
[TimeControl "180+1"]
[WhiteFideId "45004714"]
[BlackFideId "2001470"]
[WhiteElo "2512"]
[BlackElo "2378"]
[WhiteTeam "IRL"]
[BlackTeam "USA"]
[WhiteClock "0:00:15"]
[BlackClock "0:00:25"]

1. b3 {[%clk 0:03:00]}  d6 {[%clk 0:02:59]} 2. Bb2 {[%clk 0:02:58]}  e5 {[%clk 0:02:55]} 3. g3 {[%clk 0:02:53]}  c6 {[%clk 0:02:54]} 4. Bg2 {[%clk 0:02:54]}  Nf6 {[%clk 0:02:54]} 5. Nf3 {[%clk 0:02:52]}  Be6 {[%clk 0:02:51]} 6. O-O {[%clk 0:02:52]}  h6 {[%clk 0:02:50]} 7. e4 {[%clk 0:02:48]}  Qd7 {[%clk 0:02:48]} 8. Re1 {[%clk 0:02:47]}  Bh3 {[%clk 0:02:47]} 9. Bh1 {[%clk 0:02:47]}  Be7 {[%clk 0:02:47]} 10. d4 {[%clk 0:02:47]}  exd4 {[%clk 0:02:43]} 11. Nxd4 {[%clk 0:02:47]}  O-O {[%clk 0:02:41]} 12. c4 {[%clk 0:02:47]}  Re8 {[%clk 0:02:41]} 13. Nc3 {[%clk 0:02:47]}  Bf8 {[%clk 0:02:40]} 14. Qd2 {[%clk 0:02:45]}  a5 {[%clk 0:02:38]} 15. Rad1 {[%clk 0:02:46]}  Na6 {[%clk 0:02:38]} 16. Qc2 {[%clk 0:02:44]}  Nc5 {[%clk 0:02:37]} 17. a3 {[%clk 0:02:31]}  Qc7 {[%clk 0:02:36]} 18. Bg2 {[%clk 0:02:21]}  Bxg2 {[%clk 0:02:34]} 19. Kxg2 {[%clk 0:02:22]}  Rad8 {[%clk 0:02:24]} 20. Nf5 {[%clk 0:02:15]}  Re6 {[%clk 0:02:16]} 21. b4 {[%clk 0:02:12]}  axb4 {[%clk 0:02:15]} 22. axb4 {[%clk 0:02:13]}  Na6 {[%clk 0:02:15]} 23. b5 {[%clk 0:02:11]}  Nc5 {[%clk 0:02:14]} 24. f3 {[%clk 0:02:05]}  g6 {[%clk 0:02:08]} 25. Nd4 {[%clk 0:02:01]}  Ree8 {[%clk 0:02:04]} 26. Nce2 {[%clk 0:02:00]}  Bg7 {[%clk 0:02:04]} 27. Ba1 {[%clk 0:01:57]}  Ra8 {[%clk 0:01:59]} 28. Nb3 {[%clk 0:01:55]}  cxb5 {[%clk 0:01:51]} 29. cxb5 {[%clk 0:01:54]}  Qb6 {[%clk 0:01:47]} 30. Ned4 {[%clk 0:01:42]}  Rac8 {[%clk 0:01:42]} 31. Qb1 {[%clk 0:01:30]}  Nfd7 {[%clk 0:01:40]} 32. f4 {[%clk 0:01:22]}  Nf6 {[%clk 0:01:30]} 33. Kf3 {[%clk 0:01:19]}  h5 {[%clk 0:01:18]} 34. Bc3 {[%clk 0:01:13]}  Ncxe4 {[%clk 0:01:13]} 35. Ba5 {[%clk 0:01:11]}  Rc3+ {[%clk 0:00:56]} 36. Kg2 {[%clk 0:00:47]}  Qa7 {[%clk 0:00:53]} 37. Bxc3 {[%clk 0:00:44]}  Nxc3 {[%clk 0:00:52]} 38. Rxe8+ {[%clk 0:00:44]}  Nxe8 {[%clk 0:00:52]} 39. Qa1 {[%clk 0:00:44]}  Qb6 {[%clk 0:00:41]} 40. Qxc3 {[%clk 0:00:43]}  Nf6 {[%clk 0:00:40]} 41. Qf3 {[%clk 0:00:39]}  d5 {[%clk 0:00:40]} 42. f5 {[%clk 0:00:31]}  Ne4 {[%clk 0:00:38]} 43. fxg6 {[%clk 0:00:30]}  fxg6 {[%clk 0:00:38]} 44. Rf1 {[%clk 0:00:25]}  Kh7 {[%clk 0:00:37]} 45. Qf7 {[%clk 0:00:22]}  Qa7 {[%clk 0:00:36]} 46. Ne6 {[%clk 0:00:16]}  Qa2+ {[%clk 0:00:34]} 47. Kh1 {[%clk 0:00:15]}  Qb2 {[%clk 0:00:30]} 48. Nbd4 {[%clk 0:00:15]}  Ng5 {[%clk 0:00:25]} 49. Qxg7# {[%clk 0:00:15]} 1-0

[Event "January 9 Early 2024"]
[Site "https://www.chess.com"]
[Date "2024.01.11"]
[Round "11"]
[White "Laddha, Shubh Jayesh"]
[Black "Matinian, Nikita"]
[Result "0-1"]
[Board "109"]
[TimeControl "180+1"]
[WhiteFideId "30942799"]
[BlackFideId "24129100"]
[WhiteElo "2575"]
[BlackElo "2726"]
[WhiteTeam "USA"]
[BlackTeam "FID"]
[WhiteClock "0:00:04"]
[BlackClock "0:00:15"]

1. e4 {[%clk 0:03:00]}  c5 {[%clk 0:03:00]} 2. Nf3 {[%clk 0:03:00]}  e6 {[%clk 0:03:00]} 3. d4 {[%clk 0:03:00]}  cxd4 {[%clk 0:03:01]} 4. Nxd4 {[%clk 0:03:01]}  Nc6 {[%clk 0:03:00]} 5. Nc3 {[%clk 0:03:01]}  Qc7 {[%clk 0:03:01]} 6. Be3 {[%clk 0:03:01]}  a6 {[%clk 0:03:00]} 7. Qf3 {[%clk 0:03:01]}  h5 {[%clk 0:02:55]} 8. Nxc6 {[%clk 0:02:57]}  Qxc6 {[%clk 0:02:49]} 9. O-O-O {[%clk 0:02:50]}  b5 {[%clk 0:02:45]} 10. Bd3 {[%clk 0:02:46]}  Bb7 {[%clk 0:02:45]} 11. Ne2 {[%clk 0:02:41]}  e5 {[%clk 0:02:28]} 12. Nc3 {[%clk 0:02:37]}  Nf6 {[%clk 0:02:23]} 13. Bg5 {[%clk 0:02:36]}  Rc8 {[%clk 0:02:20]} 14. Rhe1 {[%clk 0:02:08]}  Ba3 {[%clk 0:02:14]} 15. Nd5 {[%clk 0:02:00]}  Be7 {[%clk 0:01:28]} 16. Nxe7 {[%clk 0:01:49]}  Kxe7 {[%clk 0:01:29]} 17. Kb1 {[%clk 0:01:49]}  b4 {[%clk 0:01:22]} 18. Qg3 {[%clk 0:01:43]}  d6 {[%clk 0:01:20]} 19. f4 {[%clk 0:01:43]}  Qc7 {[%clk 0:01:09]} 20. fxe5 {[%clk 0:01:40]}  dxe5 {[%clk 0:01:10]} 21. Rf1 {[%clk 0:01:40]}  Rhd8 {[%clk 0:01:09]} 22. Qh4 {[%clk 0:01:26]}  Rd6 {[%clk 0:01:09]} 23. Qxh5 {[%clk 0:01:24]}  a5 {[%clk 0:00:59]} 24. Bh4 {[%clk 0:01:18]}  Re6 {[%clk 0:00:57]} 25. Qg5 {[%clk 0:01:12]}  Kf8 {[%clk 0:00:40]} 26. Be1 {[%clk 0:01:02]}  Bxe4 {[%clk 0:00:32]} 27. Bxe4 {[%clk 0:00:26]}  Nxe4 {[%clk 0:00:33]} 28. Qc1 {[%clk 0:00:25]}  Rb6 {[%clk 0:00:28]} 29. Rf3 {[%clk 0:00:17]}  a4 {[%clk 0:00:27]} 30. Bg3 {[%clk 0:00:11]}  a3 {[%clk 0:00:21]} 31. Rdf1 {[%clk 0:00:10]}  f6 {[%clk 0:00:20]} 32. b3 {[%clk 0:00:08]}  Nc3+ {[%clk 0:00:18]} 33. Ka1 {[%clk 0:00:08]}  Ne2 {[%clk 0:00:18]} 34. Qd2 {[%clk 0:00:08]}  Qxc2 {[%clk 0:00:16]} 35. Qxc2 {[%clk 0:00:07]}  Rxc2 {[%clk 0:00:16]} 36. Bxe5 {[%clk 0:00:07]}  Rbc6 {[%clk 0:00:14]} 37. Kb1 {[%clk 0:00:05]}  Rc1+ {[%clk 0:00:14]} 38. Rxc1 {[%clk 0:00:04]}  Rxc1# {[%clk 0:00:15]} 0-1

[Event "January 9 Early 2024"]
[Site "https://www.chess.com"]
[Date "2024.01.11"]
[Round "11"]
[White "Chemin, Justo Reinaldo"]
[Black "Novak, Ratko"]
[Result "0-1"]
[Board "112"]
[TimeControl "180+1"]
[WhiteFideId "2101580"]
[BlackFideId "14511827"]
[WhiteElo "2239"]
[BlackElo "2412"]
[WhiteTeam "BRA"]
[BlackTeam "CRO"]
[WhiteClock "0:00:06"]
[BlackClock "0:00:20"]

1. d4 {[%clk 0:03:00]}  d5 {[%clk 0:03:00]} 2. Bf4 {[%clk 0:03:00]}  c5 {[%clk 0:03:00]} 3. e3 {[%clk 0:02:58]}  cxd4 {[%clk 0:02:58]} 4. exd4 {[%clk 0:02:58]}  Nc6 {[%clk 0:02:58]} 5. c3 {[%clk 0:02:57]}  f6 {[%clk 0:02:58]} 6. Bd3 {[%clk 0:02:52]}  g6 {[%clk 0:02:58]} 7. h4 {[%clk 0:02:47]}  e5 {[%clk 0:02:57]} 8. dxe5 {[%clk 0:02:43]}  fxe5 {[%clk 0:02:57]} 9. Bg5 {[%clk 0:02:40]}  Qb6 {[%clk 0:02:54]} 10. Qb3 {[%clk 0:02:34]}  Qxb3 {[%clk 0:02:51]} 11. axb3 {[%clk 0:02:33]}  Be7 {[%clk 0:02:49]} 12. Nd2 {[%clk 0:02:24]}  Bxg5 {[%clk 0:02:45]} 13. hxg5 {[%clk 0:02:23]}  e4 {[%clk 0:02:45]} 14. Bb5 {[%clk 0:02:05]}  Ne7 {[%clk 0:02:45]} 15. Ne2 {[%clk 0:02:04]}  O-O {[%clk 0:02:43]} 16. c4 {[%clk 0:01:39]}  Nb4 {[%clk 0:02:08]} 17. cxd5 {[%clk 0:01:11]}  Nc2+ {[%clk 0:02:05]} 18. Kd1 {[%clk 0:01:08]}  Nxa1 {[%clk 0:02:03]} 19. Nxe4 {[%clk 0:01:06]}  Kg7 {[%clk 0:01:35]} 20. d6 {[%clk 0:00:59]}  Nc6 {[%clk 0:01:32]} 21. Bxc6 {[%clk 0:00:41]}  bxc6 {[%clk 0:01:31]} 22. Nd4 {[%clk 0:00:41]}  Bf5 {[%clk 0:01:19]} 23. Nc5 {[%clk 0:00:36]}  Rae8 {[%clk 0:00:57]} 24. Kd2 {[%clk 0:00:28]}  Re5 {[%clk 0:00:57]} 25. b4 {[%clk 0:00:24]}  Rd5 {[%clk 0:00:56]} 26. Kc3 {[%clk 0:00:20]}  Rxd6 {[%clk 0:00:49]} 27. Rxa1 {[%clk 0:00:17]}  Rf7 {[%clk 0:00:49]} 28. Ra6 {[%clk 0:00:16]}  Bc8 {[%clk 0:00:45]} 29. Rxc6 {[%clk 0:00:13]}  Rxc6 {[%clk 0:00:44]} 30. Nxc6 {[%clk 0:00:14]}  Rxf2 {[%clk 0:00:25]} 31. Nxa7 {[%clk 0:00:12]}  Bg4 {[%clk 0:00:20]} 32. b5 {[%clk 0:00:12]}  Rxg2 {[%clk 0:00:19]} 33. b6 {[%clk 0:00:12]}  Bf3 {[%clk 0:00:19]} 34. Ne6+ {[%clk 0:00:09]}  Kf7 {[%clk 0:00:18]} 35. Nd4 {[%clk 0:00:08]}  Bb7 {[%clk 0:00:18]} 36. Nab5 {[%clk 0:00:06]}  Rxg5 {[%clk 0:00:19]} 37. Nd6+ {[%clk 0:00:05]}  Ke7 {[%clk 0:00:19]} 38. Nxb7 {[%clk 0:00:06]}  Kd7 {[%clk 0:00:20]} 0-1

[Event "January 9 Early 2024"]
[Site "https://www.chess.com"]
[Date "2024.01.11"]
[Round "11"]
[White "Sarkar, Justin"]
[Black "Glashausser, Sho"]
[Result "1-0"]
[Board "113"]
[TimeControl "180+1"]
[WhiteFideId "2010011"]
[BlackFideId "30908329"]
[WhiteElo "2294"]
[BlackElo "2169"]
[WhiteTeam "USA"]
[BlackTeam "USA"]
[WhiteClock "0:00:12"]
[BlackClock "0:00:15"]

1. e4 {[%clk 0:02:56]}  c6 {[%clk 0:02:45]} 2. d4 {[%clk 0:02:55]}  d5 {[%clk 0:02:44]} 3. e5 {[%clk 0:02:54]}  Bf5 {[%clk 0:02:42]} 4. Nc3 {[%clk 0:02:51]}  e6 {[%clk 0:02:41]} 5. g4 {[%clk 0:02:51]}  Bg6 {[%clk 0:02:40]} 6. Nge2 {[%clk 0:02:50]}  c5 {[%clk 0:02:38]} 7. Be3 {[%clk 0:02:42]}  Nc6 {[%clk 0:02:37]} 8. dxc5 {[%clk 0:02:41]}  Nxe5 {[%clk 0:02:28]} 9. Nf4 {[%clk 0:02:36]}  Ne7 {[%clk 0:02:19]} 10. h4 {[%clk 0:02:33]}  N7c6 {[%clk 0:02:08]} 11. h5 {[%clk 0:02:28]}  Be4 {[%clk 0:02:08]} 12. Nxe4 {[%clk 0:02:23]}  dxe4 {[%clk 0:02:09]} 13. Qxd8+ {[%clk 0:01:52]}  Rxd8 {[%clk 0:02:08]} 14. Be2 {[%clk 0:01:52]}  Nd4 {[%clk 0:01:49]} 15. Bxd4 {[%clk 0:01:31]}  Rxd4 {[%clk 0:01:48]} 16. c3 {[%clk 0:01:31]}  Rd8 {[%clk 0:01:33]} 17. b4 {[%clk 0:01:30]}  Nd3+ {[%clk 0:01:25]} 18. Bxd3 {[%clk 0:01:26]}  exd3 {[%clk 0:01:26]} 19. O-O-O {[%clk 0:01:25]}  Be7 {[%clk 0:01:18]} 20. Nxd3 {[%clk 0:01:20]}  O-O {[%clk 0:01:17]} 21. Kc2 {[%clk 0:01:12]}  Bf6 {[%clk 0:01:06]} 22. f4 {[%clk 0:01:10]}  Rd5 {[%clk 0:01:03]} 23. Nf2 {[%clk 0:00:56]}  Rfd8 {[%clk 0:01:02]} 24. Rxd5 {[%clk 0:00:52]}  Rxd5 {[%clk 0:01:02]} 25. Rd1 {[%clk 0:00:49]}  Rxd1 {[%clk 0:01:02]} 26. Nxd1 {[%clk 0:00:49]}  Kf8 {[%clk 0:00:59]} 27. Nf2 {[%clk 0:00:46]}  Ke8 {[%clk 0:00:59]} 28. Ne4 {[%clk 0:00:46]}  Be7 {[%clk 0:00:59]} 29. c4 {[%clk 0:00:44]}  Kd7 {[%clk 0:00:59]} 30. g5 {[%clk 0:00:34]}  h6 {[%clk 0:00:53]} 31. Kd3 {[%clk 0:00:27]}  Kc6 {[%clk 0:00:48]} 32. b5+ {[%clk 0:00:24]}  Kd7 {[%clk 0:00:47]} 33. Kd4 {[%clk 0:00:24]}  Kc7 {[%clk 0:00:45]} 34. a4 {[%clk 0:00:21]}  Kd7 {[%clk 0:00:42]} 35. Ke5 {[%clk 0:00:20]}  Kc7 {[%clk 0:00:30]} 36. g6 {[%clk 0:00:17]}  fxg6 {[%clk 0:00:27]} 37. hxg6 {[%clk 0:00:17]}  Kd7 {[%clk 0:00:24]} 38. c6+ {[%clk 0:00:15]}  bxc6 {[%clk 0:00:25]} 39. bxc6+ {[%clk 0:00:15]}  Kxc6 {[%clk 0:00:25]} 40. Kxe6 {[%clk 0:00:15]}  Ba3 {[%clk 0:00:19]} 41. f5 {[%clk 0:00:13]}  h5 {[%clk 0:00:16]} 42. f6 {[%clk 0:00:12]}  gxf6 {[%clk 0:00:15]} 43. g7 {[%clk 0:00:12]} 1-0

[Event "January 9 Early 2024"]
[Site "https://www.chess.com"]
[Date "2024.01.11"]
[Round "11"]
[White "Tymrakiewicz, Rafal"]
[Black "Adel, Sara"]
[Result "0-1"]
[Board "116"]
[TimeControl "180+1"]
[WhiteFideId "1108832"]
[BlackFideId "10616764"]
[WhiteElo "2382"]
[BlackElo "2242"]
[WhiteTeam "POL"]
[BlackTeam "EGY"]
[WhiteClock "0:00:03"]
[BlackClock "0:00:24"]

1. d4 {[%clk 0:02:49]}  Nf6 {[%clk 0:02:58]} 2. Bg5 {[%clk 0:02:49]}  d6 {[%clk 0:01:53]} 3. Nc3 {[%clk 0:02:39]}  Nbd7 {[%clk 0:01:47]} 4. e4 {[%clk 0:02:38]}  c5 {[%clk 0:01:47]} 5. d5 {[%clk 0:02:33]}  g6 {[%clk 0:01:47]} 6. Qd2 {[%clk 0:02:32]}  a6 {[%clk 0:01:45]} 7. a4 {[%clk 0:02:31]}  Rb8 {[%clk 0:01:44]} 8. Be2 {[%clk 0:02:26]}  Bg7 {[%clk 0:01:44]} 9. h4 {[%clk 0:02:25]}  Qa5 {[%clk 0:01:42]} 10. h5 {[%clk 0:02:23]}  b5 {[%clk 0:01:40]} 11. h6 {[%clk 0:02:09]}  Bf8 {[%clk 0:01:40]} 12. f3 {[%clk 0:01:39]}  Ne5 {[%clk 0:01:35]} 13. Nh3 {[%clk 0:01:34]}  b4 {[%clk 0:01:31]} 14. Nd1 {[%clk 0:01:27]}  c4 {[%clk 0:01:31]} 15. b3 {[%clk 0:01:18]}  c3 {[%clk 0:01:21]} 16. Qd4 {[%clk 0:01:17]}  Qc5 {[%clk 0:01:12]} 17. Be3 {[%clk 0:01:04]}  Qxd4 {[%clk 0:01:07]} 18. Bxd4 {[%clk 0:01:05]}  Bxh6 {[%clk 0:01:07]} 19. Ne3 {[%clk 0:00:53]}  O-O {[%clk 0:01:05]} 20. g4 {[%clk 0:00:39]}  Nfd7 {[%clk 0:01:02]} 21. f4 {[%clk 0:00:33]}  f6 {[%clk 0:00:48]} 22. g5 {[%clk 0:00:19]}  fxg5 {[%clk 0:00:44]} 23. fxe5 {[%clk 0:00:15]}  dxe5 {[%clk 0:00:45]} 24. Ba7 {[%clk 0:00:15]}  Rb7 {[%clk 0:00:45]} 25. Ng4 {[%clk 0:00:13]}  Bg7 {[%clk 0:00:45]} 26. Nxg5 {[%clk 0:00:13]}  h5 {[%clk 0:00:44]} 27. Ne6 {[%clk 0:00:11]}  Rxa7 {[%clk 0:00:32]} 28. Nxf8 {[%clk 0:00:06]}  Nxf8 {[%clk 0:00:31]} 29. Ne3 {[%clk 0:00:06]}  Bh6 {[%clk 0:00:31]} 30. Nc4 {[%clk 0:00:06]}  Nd7 {[%clk 0:00:30]} 31. O-O {[%clk 0:00:03]}  Bf4 {[%clk 0:00:30]} 32. Rf2 {[%clk 0:00:02]}  Nf6 {[%clk 0:00:30]} 33. Bd3 {[%clk 0:00:02]}  Ng4 {[%clk 0:00:29]} 34. Raf1 {[%clk 0:00:02]}  Nxf2 {[%clk 0:00:28]} 35. Rxf2 {[%clk 0:00:03]}  Bd7 {[%clk 0:00:27]} 36. Rg2 {[%clk 0:00:02]}  g5 {[%clk 0:00:27]} 37. Nb6 {[%clk 0:00:03]}  Kg7 {[%clk 0:00:26]} 38. a5 {[%clk 0:00:03]}  Kg6 {[%clk 0:00:25]} 39. Bc4 {[%clk 0:00:02]}  Be3+ {[%clk 0:00:22]} 40. Kf1 {[%clk 0:00:01]}  Bxb6 {[%clk 0:00:22]} 41. axb6 {[%clk 0:00:02]}  Rb7 {[%clk 0:00:23]} 42. Bxa6 {[%clk 0:00:02]}  Rxb6 {[%clk 0:00:24]} 43. Bc4 {[%clk 0:00:02]}  Bh3 {[%clk 0:00:24]} 44. Ke2 {[%clk 0:00:03]}  Bxg2 {[%clk 0:00:24]} 0-1

[Event "January 9 Early 2024"]
[Site "https://www.chess.com"]
[Date "2024.01.11"]
[Round "11"]
[White "So, Wesley"]
[Black "Chigaev, Maksim"]
[Result "1-0"]
[Board "117"]
[TimeControl "180+1"]
[WhiteFideId "5202213"]
[BlackFideId "4108116"]
[WhiteElo "3068"]
[BlackElo "2977"]
[WhiteTeam "USA"]
[BlackTeam "ESP"]
[WhiteClock "0:00:17"]
[BlackClock "0:00:01"]

1. d4 {[%clk 0:02:54]}  Nf6 {[%clk 0:03:00]} 2. c4 {[%clk 0:02:53]}  g6 {[%clk 0:03:00]} 3. Nc3 {[%clk 0:02:52]}  Bg7 {[%clk 0:03:00]} 4. e4 {[%clk 0:02:52]}  d6 {[%clk 0:03:01]} 5. Nge2 {[%clk 0:02:52]}  h5 {[%clk 0:02:54]} 6. f3 {[%clk 0:02:49]}  O-O {[%clk 0:02:52]} 7. Be3 {[%clk 0:02:49]}  a6 {[%clk 0:02:50]} 8. Qd2 {[%clk 0:02:48]}  b5 {[%clk 0:02:50]} 9. cxb5 {[%clk 0:02:48]}  axb5 {[%clk 0:02:51]} 10. Nxb5 {[%clk 0:02:49]}  c6 {[%clk 0:02:51]} 11. Nbc3 {[%clk 0:02:49]}  Nbd7 {[%clk 0:02:52]} 12. Nf4 {[%clk 0:02:47]}  e5 {[%clk 0:02:51]} 13. dxe5 {[%clk 0:02:47]}  Nxe5 {[%clk 0:02:51]} 14. Be2 {[%clk 0:02:44]}  d5 {[%clk 0:02:52]} 15. exd5 {[%clk 0:02:43]}  Nxd5 {[%clk 0:02:45]} 16. Nfxd5 {[%clk 0:02:42]}  cxd5 {[%clk 0:02:46]} 17. Bd4 {[%clk 0:02:20]}  Qh4+ {[%clk 0:02:10]} 18. Bf2 {[%clk 0:02:20]}  Qb4 {[%clk 0:02:10]} 19. Rd1 {[%clk 0:02:00]}  d4 {[%clk 0:01:09]} 20. Nd5 {[%clk 0:01:56]}  Qxd2+ {[%clk 0:00:29]} 21. Rxd2 {[%clk 0:01:57]}  Rxa2 {[%clk 0:00:26]} 22. Bxd4 {[%clk 0:01:40]}  Ra1+ {[%clk 0:00:26]} 23. Bd1 {[%clk 0:01:36]}  Be6 {[%clk 0:00:15]} 24. b3 {[%clk 0:01:24]}  Rb1 {[%clk 0:00:10]} 25. Nc3 {[%clk 0:01:22]}  Rc1 {[%clk 0:00:10]} 26. Ne2 {[%clk 0:01:21]}  Rb1 {[%clk 0:00:07]} 27. O-O {[%clk 0:01:08]}  Rd8 {[%clk 0:00:07]} 28. Bc2 {[%clk 0:00:54]}  Rxf1+ {[%clk 0:00:07]} 29. Kxf1 {[%clk 0:00:55]}  Rb8 {[%clk 0:00:06]} 30. Bd1 {[%clk 0:00:47]}  Rb7 {[%clk 0:00:02]} 31. Rb2 {[%clk 0:00:33]}  Nd3 {[%clk 0:00:02]} 32. Rb1 {[%clk 0:00:33]}  Bf5 {[%clk 0:00:02]} 33. Bxg7 {[%clk 0:00:29]}  Kxg7 {[%clk 0:00:02]} 34. Bc2 {[%clk 0:00:27]}  Rc7 {[%clk 0:00:02]} 35. Nd4 {[%clk 0:00:27]}  Nb4 {[%clk 0:00:02]} 36. Bxf5 {[%clk 0:00:25]}  gxf5 {[%clk 0:00:02]} 37. Nxf5+ {[%clk 0:00:26]}  Kf6 {[%clk 0:00:03]} 38. Ne3 {[%clk 0:00:22]}  Kg6 {[%clk 0:00:02]} 39. Ke2 {[%clk 0:00:19]}  Ra7 {[%clk 0:00:02]} 40. Rb2 {[%clk 0:00:19]}  Ra1 {[%clk 0:00:01]} 41. Nc2 {[%clk 0:00:18]}  Nc6 {[%clk 0:00:01]} 42. Nxa1 {[%clk 0:00:17]} 1-0

[Event "January 9 Early 2024"]
[Site "https://www.chess.com"]
[Date "2024.01.11"]
[Round "11"]
[White "Carrillo Marval, Maria Angelica"]
[Black "Smirnov, Timofey"]
[Result "1-0"]
[Board "122"]
[TimeControl "180+1"]
[WhiteFideId "3911853"]
[BlackFideId "24176427"]
[WhiteElo "2106"]
[BlackElo "1992"]
[WhiteTeam "PAN"]
[BlackTeam "RUS"]
[WhiteClock "0:00:05"]
[BlackClock "0:00:03"]

1. e4 {[%clk 0:02:59]}  e5 {[%clk 0:02:58]} 2. Nf3 {[%clk 0:02:59]}  Nf6 {[%clk 0:02:58]} 3. Nxe5 {[%clk 0:02:59]}  d6 {[%clk 0:02:58]} 4. Nf3 {[%clk 0:02:59]}  Nxe4 {[%clk 0:02:59]} 5. d4 {[%clk 0:03:00]}  d5 {[%clk 0:02:59]} 6. Bd3 {[%clk 0:03:00]}  Nc6 {[%clk 0:03:00]} 7. O-O {[%clk 0:03:01]}  Be7 {[%clk 0:03:00]} 8. Re1 {[%clk 0:03:00]}  Bg4 {[%clk 0:02:59]} 9. Bxe4 {[%clk 0:02:56]}  dxe4 {[%clk 0:02:57]} 10. Rxe4 {[%clk 0:02:57]}  Bxf3 {[%clk 0:02:56]} 11. Qxf3 {[%clk 0:02:55]}  Nxd4 {[%clk 0:02:56]} 12. Qd1 {[%clk 0:02:42]}  Nb3 {[%clk 0:02:17]} 13. Rxe7+ {[%clk 0:01:49]}  Qxe7 {[%clk 0:01:33]} 14. axb3 {[%clk 0:01:39]}  O-O {[%clk 0:01:32]} 15. Be3 {[%clk 0:01:22]}  Rad8 {[%clk 0:01:31]} 16. Nd2 {[%clk 0:01:01]}  a6 {[%clk 0:01:29]} 17. Qf3 {[%clk 0:00:59]}  c6 {[%clk 0:01:23]} 18. Re1 {[%clk 0:00:53]}  Rfe8 {[%clk 0:01:15]} 19. h3 {[%clk 0:00:38]}  Qc7 {[%clk 0:01:11]} 20. Rf1 {[%clk 0:00:27]}  Rd7 {[%clk 0:00:55]} 21. Nc4 {[%clk 0:00:27]}  Rde7 {[%clk 0:00:41]} 22. Bf4 {[%clk 0:00:20]}  Qd7 {[%clk 0:00:37]} 23. Nd6 {[%clk 0:00:16]}  Rd8 {[%clk 0:00:34]} 24. Bg3 {[%clk 0:00:11]}  Qe6 {[%clk 0:00:35]} 25. Rd1 {[%clk 0:00:09]}  Red7 {[%clk 0:00:24]} 26. c4 {[%clk 0:00:08]}  h6 {[%clk 0:00:17]} 27. c5 {[%clk 0:00:06]}  b6 {[%clk 0:00:17]} 28. b4 {[%clk 0:00:06]}  bxc5 {[%clk 0:00:17]} 29. bxc5 {[%clk 0:00:06]}  Qg6 {[%clk 0:00:14]} 30. Qxc6 {[%clk 0:00:05]}  Qh5 {[%clk 0:00:08]} 31. Qd5 {[%clk 0:00:02]}  Qxd5 {[%clk 0:00:08]} 32. Rxd5 {[%clk 0:00:03]}  a5 {[%clk 0:00:08]} 33. b4 {[%clk 0:00:04]}  axb4 {[%clk 0:00:07]} 34. Rd3 {[%clk 0:00:05]}  Rb8 {[%clk 0:00:03]} 35. Rb3 {[%clk 0:00:05]} 1-0